lending/lending_fUSD_20251018
["ID","MTS","AMOUNT","RATE_DAILY","PERIOD"]
[391726787,1760754640508,-2552.93266601,0.000231,2]
[391726788,1760754640517,-266.15830947,0.000232,2]
[391726789,1760754640527,-51510.87983967,0.000232,2]
[391726790,1760754640536,-550.42475575,0.00023261,2]
[391726791,1760754640546,-11095.11818022,0.00023339,2]
[391726792,1760754640555,-266.15830947,0.000235,2]
[391726793,1760754640565,-200.0,0.000235,2]
[391726794,1760754640578,-4055.87,0.00023678,2]
[391726795,1760754640587,-266.15830947,0.000237,2]
[391726796,1760754640596,-162.83,0.00023728,2]
[391726797,1760754640605,-19280.44178001,0.00023738,2]
[391726798,1760754640615,-1000.0,0.00023784,2]
[391726799,1760754640624,-266.15830947,0.000239,2]
[391726800,1760754640634,-282.93470064,0.000239,2]
[391726801,1760754640644,-500.0,0.00023973,2]
[391726802,1760754640655,-503.20185443,0.00023973,2]
[391726803,1760754640665,-505.54377894,0.00023973,2]
[391726804,1760754640675,-263.75993741,0.00023999,2]
[391726805,1760754640685,-95976.79494342,0.00024,2]
[391726806,1760754640694,-1007.22540691,0.00024,2]
[391726807,1760754640704,-232045.71399457,0.00024,2]
[391726808,1760754640715,-770.65745565,0.00024,2]
[391726809,1760754640724,-3600.0,0.00024,2]
[391726810,1760754640734,-471.92665052,0.00024,2]
[391726811,1760754640743,-15996.23040414,0.00024,2]
[391726812,1760754640753,-500.0,0.00024,5]
[391726813,1760754640763,-5000.0,0.00024144,2]
[391726814,1760754640772,-416.20810422,0.0002421,2]
[391726815,1760754640781,-3647.06551295,0.0002421,2]
[391726816,1760754640790,-500.0,0.00024274,5]
[391726817,1760754640800,-13868.89772527,0.00024286,2]
[391726818,1760754640813,-304.58922137,0.00024521,2]
[391726819,1760754640822,-500.0,0.00024548,5]
[391726820,1760754640831,-589.4365271,0.0002465,2]
[391726821,1760754640841,-165.00620085,0.0002465,2]
[391726822,1760754640850,-14547.13536267,0.00024655,2]
[391726823,1760754640859,-500.0,0.00024822,5]
[391726825,1760754640868,-500.0,0.00024932,2]
[391726826,1760754640878,-500.0,0.00024932,2]
[391726828,1760754640887,-500.0,0.00024973,2]
[391726829,1760754640896,-500.0,0.00024973,2]
[391726830,1760754640905,-500.0,0.00024973,2]
[391726831,1760754640914,-500.0,0.00024973,2]
[391726832,1760754640925,-599.49667119,0.00025,2]
[391726833,1760754640934,-204.35210242,0.00025,2]
[391726834,1760754640943,-1008.48,0.00025,2]
[391726835,1760754640954,-1757.54654864,0.00025,2]
[391726836,1760754640964,-1287.18905674,0.00025,7]
[391726837,1760754640973,-360.0,0.00025,2]
[391726838,1760754640982,-3768.27279388,0.00025,2]
[391726839,1760754640991,-329.65620269,0.00025,2]
[391726840,1760754641001,-3517.7066401,0.00025,2]
[391726841,1760754641010,-2996.86684642,0.00025,2]
[391726842,1760754641020,-3183.99561198,0.00025,2]
[391726843,1760754641030,-25130.88255645,0.00025,2]
[391726844,1760754641039,-1047.85592398,0.00025,2]
[391726845,1760754641049,-164.69875571,0.00025,2]
[391726846,1760754641058,-2684.09965353,0.00025,2]
[391726847,1760754641068,-28767.33190432,0.00025,2]
[391726848,1760754641077,-160.16844142,0.00025,2]
[391726849,1760754641086,-15000.0,0.0002501,2]
[391726850,1760754641096,-500.0,0.00025096,5]
[391726851,1760754641106,-612.1249,0.00025179,2]
[391726852,1760754641115,-2132.2701,0.00025179,2]
[391726853,1760754641125,-3215.4698,0.00025179,2]
[391726854,1760754641135,-417.0,0.00025306,2]
[391726855,1760754641144,-417.0,0.00025306,2]
[391726856,1760754641153,-417.0,0.00025306,2]
[391726857,1760754641163,-417.0,0.00025306,2]
[391726858,1760754641173,-417.0,0.00025306,2]
[391726859,1760754641192,-417.0,0.00025306,2]
[391726860,1760754641202,-417.0,0.00025306,2]
[391726861,1760754641211,-417.0,0.00025306,2]
[391726862,1760754641221,-417.0,0.00025306,2]
[391726863,1760754641231,-417.0,0.00025306,2]
[391726864,1760754641240,-417.0,0.00025306,2]
[391726865,1760754641250,-417.0,0.00025306,2]
[391726866,1760754641259,-417.0,0.00025306,2]
[391726867,1760754641270,-417.0,0.00025306,2]
[391726868,1760754641279,-166.0,0.00025306,2]
[391726869,1760754641288,-166.0,0.00025306,2]
[391726870,1760754641298,-166.0,0.00025306,2]
[391726871,1760754641307,-166.0,0.00025306,2]
[391726872,1760754641316,-166.0,0.00025306,2]
[391726873,1760754641328,-166.0,0.00025306,2]
[391726874,1760754641339,-166.0,0.00025306,2]
[391726875,1760754641349,-166.0,0.00025306,2]
[391726876,1760754641358,-166.0,0.00025306,2]
[391726877,1760754641367,-166.0,0.00025306,2]
[391726878,1760754641378,-166.0,0.00025306,2]
[391726879,1760754641387,-166.0,0.00025306,2]
[391726880,1760754641397,-166.0,0.00025306,2]
[391726881,1760754641406,-166.0,0.00025306,2]
[391726882,1760754641415,-431.0,0.00025306,2]
[391726883,1760754641425,-431.0,0.00025306,2]
[391726884,1760754641434,-431.0,0.00025306,2]
[391726885,1760754641443,-431.0,0.00025306,2]
[391726886,1760754641454,-431.0,0.00025306,2]
[391726887,1760754641463,-431.0,0.00025306,2]
[391726888,1760754641472,-431.0,0.00025306,2]
[391726889,1760754641481,-431.0,0.00025306,2]
[391726890,1760754641490,-431.0,0.00025306,2]
[391726891,1760754641500,-431.0,0.00025306,2]
[391726892,1760754641509,-431.0,0.00025306,2]
[391726893,1760754641518,-431.0,0.00025306,2]
[391726894,1760754641527,-431.0,0.00025306,2]
[391726895,1760754641536,-431.0,0.00025306,2]
[391726896,1760754641545,-166.0,0.00025306,2]
[391726897,1760754641554,-166.0,0.00025306,2]
[391726898,1760754641563,-166.0,0.00025306,2]
[391726899,1760754641573,-166.0,0.00025306,2]
[391726900,1760754641582,-166.0,0.00025306,2]
[391726901,1760754641591,-166.0,0.00025306,2]
[391726902,1760754641601,-166.0,0.00025306,2]
[391726903,1760754641610,-166.0,0.00025306,2]
[391726904,1760754641620,-166.0,0.00025306,2]
[391726905,1760754641630,-166.0,0.00025306,2]
[391726906,1760754641639,-166.0,0.00025306,2]
[391726907,1760754641845,-166.0,0.00025306,2]
[391726908,1760754641854,-166.0,0.00025306,2]
[391726909,1760754641864,-166.0,0.00025306,2]
[391726910,1760754641872,-349.0,0.00025306,2]
[391726911,1760754641882,-349.0,0.00025306,2]
[391726912,1760754641892,-349.0,0.00025306,2]
[391726913,1760754641901,-349.0,0.00025306,2]
[391726914,1760754641910,-349.0,0.00025306,2]
[391726915,1760754641919,-349.0,0.00025306,2]
[391726916,1760754641928,-349.0,0.00025306,2]
[391726917,1760754641937,-349.0,0.00025306,2]
[391726918,1760754641946,-349.0,0.00025306,2]
[391726919,1760754641956,-349.0,0.00025306,2]
[391726920,1760754641965,-349.0,0.00025306,2]
[391726921,1760754641974,-349.0,0.00025306,2]
[391726922,1760754641983,-349.0,0.00025306,2]
[391726923,1760754641992,-349.0,0.00025306,2]
[391726924,1760754642001,-162.0,0.00025306,2]
[391726925,1760754642010,-162.0,0.00025306,2]
[391726926,1760754642019,-162.0,0.00025306,2]
[391726927,1760754642028,-162.0,0.00025306,2]
[391726928,1760754642037,-162.0,0.00025306,2]
[391726929,1760754642050,-162.0,0.00025306,2]
[391726930,1760754642059,-162.0,0.00025306,2]
[391726931,1760754642070,-162.0,0.00025306,2]
[391726932,1760754642079,-162.0,0.00025306,2]
[391726933,1760754642088,-162.0,0.00025306,2]
[391726934,1760754642098,-162.0,0.00025306,2]
[391726935,1760754642107,-162.0,0.00025306,2]
[391726936,1760754642117,-162.0,0.00025306,2]
[391726937,1760754642126,-162.0,0.00025306,2]
[391726938,1760754642136,-177.0,0.00025306,2]
[391726939,1760754642146,-177.0,0.00025306,2]
[391726940,1760754642155,-177.0,0.00025306,2]
[391726941,1760754642164,-177.0,0.00025306,2]
[391726942,1760754642173,-177.0,0.00025306,2]
[391726943,1760754642183,-177.0,0.00025306,2]
[391726944,1760754642192,-177.0,0.00025306,2]
[391726945,1760754642201,-177.0,0.00025306,2]
[391726946,1760754642211,-177.0,0.00025306,2]
[391726947,1760754642221,-177.0,0.00025306,2]
[391726948,1760754642230,-177.0,0.00025306,2]
[391726949,1760754642240,-177.0,0.00025306,2]
[391726950,1760754642250,-177.0,0.00025306,2]
[391726951,1760754642259,-177.0,0.00025306,2]
[391726952,1760754642268,-454.0,0.00025306,2]
[391726953,1760754642278,-454.0,0.00025306,2]
[391726954,1760754642288,-454.0,0.00025306,2]
[391726955,1760754642297,-454.0,0.00025306,2]
[391726956,1760754642306,-454.0,0.00025306,2]
[391726957,1760754642318,-454.0,0.00025306,2]
[391726958,1760754642327,-454.0,0.00025306,2]
[391726959,1760754642336,-454.0,0.00025306,2]
[391726960,1760754642346,-454.0,0.00025306,2]
[391726961,1760754642355,-454.0,0.00025306,2]
[391726962,1760754642364,-454.0,0.00025306,2]
[391726963,1760754642374,-454.0,0.00025306,2]
[391726964,1760754642383,-500.0,0.0002537,5]
[391726965,1760754642392,-1008.48,0.000255,2]
[391726966,1760754642401,-1000.0,0.00025521,2]
[391726967,1760754642411,-1000.0,0.00025521,2]
[391726968,1760754642420,-1000.0,0.00025521,2]
[391726969,1760754642429,-1000.0,0.00025521,2]
[391726970,1760754642439,-150.0,0.00025576,2]
[391726971,1760754642449,-301.0,0.00025576,2]
[391726972,1760754642459,-19280.44178001,0.00025576,2]
[391726973,1760754642469,-500.0,0.00025644,5]
[391726974,1760754642479,-500.0,0.00025773,2]
[391726975,1760754642488,-500.0,0.00025773,2]
[391726976,1760754642498,-306.28347076,0.00025809,2]
[391726977,1760754642507,-2545.26476087,0.00025879,2]
[391726978,1760754642516,-500.0,0.00025918,5]
[391726980,1760754642525,-150.0,0.0002597,2]
[391726981,1760754642534,-500.0,0.00025973,2]
[391726982,1760754642543,-500.0,0.00025973,2]
[391726983,1760754642552,-500.0,0.00025973,2]
[391726984,1760754642562,-591.26693502,0.0002599,2]
[391726985,1760754642572,-79459.7030265,0.00026,2]
[391726986,1760754642582,-4453.08008562,0.00026,2]
[391726987,1760754642591,-2657.83957206,0.00026,2]
[391726988,1760754642601,-4433.65,0.00026,2]
[391726989,1760754642612,-2065.47782263,0.00026,7]
[391726990,1760754642621,-213.07822938,0.00026,2]
[391726991,1760754642630,-160.3575475,0.00026,2]
[391726992,1760754642640,-500.0,0.00026192,5]
[391726993,1760754642649,-282.93470062,0.00026222,2]
[391726994,1760754642659,-283.772,0.00026304,13]
[391726995,1760754642669,-4422.506,0.00026304,13]
[391726996,1760754642678,-502.27838431,0.00026321,2]
[391726997,1760754642687,-27053.35193429,0.000264,2]
[391726998,1760754642696,-151.0,0.000264,7]
[391726999,1760754642705,-151.0,0.000264,7]
[391727000,1760754642715,-151.0,0.000264,7]
[391727001,1760754642724,-151.0,0.000264,7]
[391727002,1760754642734,-151.0,0.000264,7]
[391727003,1760754642743,-151.0,0.000264,7]
[391727004,1760754642752,-151.0,0.000264,7]
[391727005,1760754642761,-151.0,0.000264,7]
[391727006,1760754642771,-151.0,0.000264,7]
[391727007,1760754642780,-151.0,0.000264,7]
[391727008,1760754642789,-151.0,0.000264,7]
[391727009,1760754642797,-151.0,0.000264,7]
[391727010,1760754642816,-151.0,0.000264,7]
[391727011,1760754642826,-151.0,0.000264,7]
[391727012,1760754642835,-151.0,0.000264,7]
[391727013,1760754642844,-151.0,0.000264,7]
[391727014,1760754642854,-151.0,0.000264,7]
[391727015,1760754642864,-151.0,0.000264,7]
[391727016,1760754642874,-151.783554,0.000264,7]
[391727017,1760754642883,-151.0,0.000264,7]
[391727018,1760754642894,-151.0,0.000264,7]
[391727019,1760754642903,-1000.0,0.00026426,2]
[391727020,1760754642913,-500.0,0.00026466,5]
[391727021,1760754642923,-1000.0,0.00026521,2]
[391727022,1760754642932,-453.29679305,0.00026521,2]
[391727023,1760754642941,-1000.0,0.00026521,2]
[391727024,1760754642951,-151.687755,0.00026521,7]
[391727025,1760754642959,-151.0,0.00026521,7]
[391727026,1760754642969,-151.0,0.00026521,7]
[391727027,1760754642979,-218.679278,0.00026521,7]
[391727028,1760754642988,-218.679278,0.00026521,7]
[391727029,1760754642998,-218.679278,0.00026521,7]
[391727030,1760754643008,-218.679278,0.00026521,7]
[391727031,1760754643017,-284.38862266,0.00026521,7]
[391727032,1760754643027,-151.0,0.00026521,7]
[391727033,1760754643036,-151.0,0.00026521,7]
[391727034,1760754643046,-151.0,0.00026521,7]
[391727035,1760754643055,-151.0,0.00026521,7]
[391727036,1760754643065,-151.457425,0.00026521,7]
[391727037,1760754643074,-151.0,0.00026521,7]
[391727038,1760754643084,-222.79695,0.00026521,7]
[391727040,1760754643093,-151.0,0.00026521,7]
[391727042,1760754643102,-222.79695,0.00026521,7]
[391727044,1760754643112,-222.20271,0.00026521,7]
[391727046,1760754643123,-222.79695,0.00026521,7]
[391727047,1760754643133,-222.79695,0.00026521,7]
[391727048,1760754643143,-151.0,0.00026521,7]
[391727049,1760754643152,-151.706033,0.00026521,7]
[391727050,1760754643161,-151.0,0.00026521,7]
[391727051,1760754643171,-345.287805,0.00026521,7]
[391727052,1760754643181,-156.614876,0.00026521,7]
[391727053,1760754643190,-345.287805,0.00026521,7]
[391727054,1760754643199,-151.0,0.00026521,7]
[391727055,1760754643208,-345.287805,0.00026521,7]
[391727057,1760754643218,-151.0,0.00026521,7]
[391727058,1760754643228,-345.287805,0.00026521,7]
[391727059,1760754643237,-151.0,0.00026521,7]
[391727060,1760754643247,-500.0,0.0002674,5]
[391727061,1760754643256,-153.0,0.00026822,2]
[391727062,1760754643265,-153.0,0.00026822,2]
[391727063,1760754643274,-153.0,0.00026822,2]
[391727064,1760754643283,-153.0,0.00026822,2]
[391727065,1760754643292,-153.0,0.00026822,2]
[391727066,1760754643301,-153.0,0.00026822,2]
[391727067,1760754643311,-153.0,0.00026822,2]
[391727068,1760754643320,-153.0,0.00026822,2]
[391727069,1760754643330,-153.0,0.00026822,2]
[391727070,1760754643339,-153.0,0.00026822,2]
[391727071,1760754643349,-153.0,0.00026822,2]
[391727072,1760754643357,-153.0,0.00026822,2]
[391727073,1760754643367,-153.0,0.00026822,2]
[391727074,1760754643376,-153.0,0.00026822,2]
[391727075,1760754643386,-166.0,0.00026822,2]
[391727076,1760754643395,-166.0,0.00026822,2]
[391727077,1760754643404,-166.0,0.00026822,2]
[391727078,1760754643413,-166.0,0.00026822,2]
[391727079,1760754643423,-166.0,0.00026822,2]
[391727080,1760754643432,-166.0,0.00026822,2]
[391727081,1760754643442,-166.0,0.00026822,2]
[391727082,1760754643451,-166.0,0.00026822,2]
[391727083,1760754643460,-166.0,0.00026822,2]
[391727084,1760754643469,-166.0,0.00026822,2]
[391727085,1760754643479,-166.0,0.00026822,2]
[391727086,1760754643488,-166.0,0.00026822,2]
[391727087,1760754643497,-166.0,0.00026822,2]
[391727088,1760754643506,-166.0,0.00026822,2]
[391727089,1760754643515,-209.0,0.00026822,2]
[391727090,1760754643524,-209.0,0.00026822,2]
[391727091,1760754643534,-209.0,0.00026822,2]
[391727092,1760754643543,-209.0,0.00026822,2]
[391727093,1760754643552,-209.0,0.00026822,2]
[391727094,1760754643561,-209.0,0.00026822,2]
[391727095,1760754643574,-209.0,0.00026822,2]
[391727096,1760754643583,-209.0,0.00026822,2]
[391727097,1760754643592,-209.0,0.00026822,2]
[391727098,1760754643601,-209.0,0.00026822,2]
[391727099,1760754643611,-209.0,0.00026822,2]
[391727100,1760754643620,-209.0,0.00026822,2]
[391727101,1760754643629,-209.0,0.00026822,2]
[391727102,1760754643638,-209.0,0.00026822,2]
[391727103,1760754643648,-166.0,0.00026822,2]
[391727104,1760754643657,-166.0,0.00026822,2]
[391727105,1760754643667,-166.0,0.00026822,2]
[391727106,1760754643676,-166.0,0.00026822,2]
[391727107,1760754643685,-166.0,0.00026822,2]
[391727108,1760754643695,-166.0,0.00026822,2]
[391727109,1760754643704,-166.0,0.00026822,2]
[391727110,1760754643714,-166.0,0.00026822,2]
[391727111,1760754643724,-166.0,0.00026822,2]
[391727113,1760754643733,-166.0,0.00026822,2]
[391727114,1760754643742,-166.0,0.00026822,2]
[391727115,1760754643751,-166.0,0.00026822,2]
[391727116,1760754643760,-166.0,0.00026822,2]
[391727117,1760754643769,-166.0,0.00026822,2]
[391727118,1760754643778,-150.35,0.0002689,2]
[391727119,1760754643787,-389.77064177,0.0002689,2]
[391727120,1760754643796,-300.0,0.00026899,10]
[391727121,1760754643811,-300.0,0.00026899,10]
[391727122,1760754643823,-314126.96498374,0.000269,2]
[391727123,1760754643833,-151.323903,0.000269,7]
[391727124,1760754643842,-151.0,0.000269,7]
[391727125,1760754643854,-313.060149,0.000269,7]
[391727126,1760754643863,-313.060149,0.000269,7]
[391727127,1760754643872,-313.060149,0.000269,7]
[391727128,1760754643884,-313.060149,0.000269,7]
[391727129,1760754643893,-153.423251,0.000269,7]
[391727130,1760754643902,-153.423251,0.000269,7]
[391727131,1760754643911,-153.423251,0.000269,7]
[391727132,1760754643920,-151.961333,0.000269,7]
[391727133,1760754643931,-153.423251,0.000269,7]
[391727134,1760754643940,-267.677565,0.000269,7]
[391727135,1760754643949,-267.677565,0.000269,7]
[391727136,1760754643958,-267.677565,0.000269,7]
[391727137,1760754643968,-267.677565,0.000269,7]
[391727138,1760754643978,-500.0,0.00027014,5]
[391727139,1760754643987,-500.0,0.00027288,5]
[391727140,1760754643997,-300.0,0.00027397,7]
[391727141,1760754644007,-300.0,0.00027397,7]
[391727142,1760754644016,-157.16017891,0.00027397,5]
[391727143,1760754644026,-630.18,0.000274,2]
[391727144,1760754644035,-898.28,0.000274,7]
[391727145,1760754644044,-19280.44178001,0.00027415,2]
[391727146,1760754644054,-151.0,0.00027415,30]
[391727147,1760754644067,-151.0,0.00027415,30]
[391727148,1760754644076,-218.679278,0.00027415,30]
[391727149,1760754644087,-218.679278,0.00027415,30]
[391727150,1760754644097,-218.679278,0.00027415,30]
[391727151,1760754644106,-218.679278,0.00027415,30]
[391727152,1760754644115,-151.0,0.00027415,30]
[391727153,1760754644125,-152.221314,0.00027415,30]
[391727154,1760754644134,-151.0,0.00027415,30]
[391727155,1760754644144,-151.0,0.00027415,30]
[391727156,1760754644153,-151.0,0.00027415,30]
[391727157,1760754644163,-222.79695,0.00027415,30]
[391727158,1760754644173,-151.0,0.00027415,30]
[391727159,1760754644182,-222.79695,0.00027415,30]
[391727160,1760754644192,-222.79695,0.00027415,30]
[391727161,1760754644201,-222.79695,0.00027415,30]
[391727162,1760754644211,-151.0,0.00027415,30]
[391727163,1760754644221,-151.0,0.00027415,30]
[391727164,1760754644230,-345.287805,0.00027415,30]
[391727165,1760754644240,-345.287805,0.00027415,30]
[391727166,1760754644249,-151.0,0.00027415,30]
[391727167,1760754644259,-345.287805,0.00027415,30]
[391727168,1760754644269,-151.0,0.00027415,30]
[391727169,1760754644278,-345.287805,0.00027415,30]
[391727170,1760754644288,-151.0,0.00027415,30]
[391727171,1760754644297,-151.0,0.00027415,30]
[391727172,1760754644307,-151.0,0.00027415,30]
[391727173,1760754644319,-151.0,0.00027415,30]
[391727174,1760754644328,-151.0,0.00027415,30]
[391727175,1760754644341,-151.0,0.00027415,30]
[391727176,1760754644351,-151.0,0.00027415,30]
[391727177,1760754644360,-151.0,0.00027415,30]
[391727178,1760754644369,-247.085158,0.00027415,30]
[391727179,1760754644379,-151.0,0.00027415,30]
[391727180,1760754644387,-151.0,0.00027415,30]
[391727181,1760754644397,-151.0,0.00027415,30]
[391727182,1760754644406,-151.0,0.00027415,30]
[391727183,1760754644415,-151.0,0.00027415,30]
[391727184,1760754644424,-195.565626,0.00027415,30]
[391727185,1760754644434,-151.0,0.00027415,30]
[391727186,1760754644444,-151.0,0.00027415,30]
[391727187,1760754644454,-151.0,0.00027415,30]
[391727188,1760754644463,-151.0,0.00027415,30]
[391727189,1760754644472,-151.0,0.00027415,30]
[391727190,1760754644481,-151.0,0.00027415,30]
[391727191,1760754644490,-300.0,0.00027534,7]
[391727192,1760754644499,-500.0,0.00027562,30]
[391727193,1760754644509,-300.0,0.00027671,7]
[391727194,1760754644519,-200.0,0.00027757,2]
[391727195,1760754644529,-500.0,0.00027836,30]
[391727196,1760754644539,-252.48,0.00027937,30]
[391727197,1760754644549,-300.0,0.00027999,10]
[391727198,1760754644558,-30978.40155413,0.00028,60]
[391727199,1760754644569,-500.0,0.0002811,30]
[391727200,1760754644578,-500.0,0.00028384,30]
[391727201,1760754644587,-282.93470062,0.00028544,2]
[391727202,1760754644597,-306.28347076,0.00028638,2]
[391727203,1760754644606,-500.0,0.00028658,30]
[391727204,1760754644615,-5064.0,0.000289,5]
[391727205,1760754644624,-500.0,0.00028932,30]
[391727206,1760754644634,-2000.0,0.00029,120]
[391727207,1760754644643,-826.8416,0.00029036,2]
[391727208,1760754644652,-1000.0,0.00029069,2]
[391727209,1760754644662,-200.0,0.00029083,2]
[391727210,1760754644671,-500.0,0.00029205,30]
[391727211,1760754644680,-150.35,0.00029243,2]
[391727212,1760754644689,-19280.44178001,0.00029253,2]
[391727213,1760754644699,-5627.71,0.00029303,2]
[391727214,1760754644708,-264.39093766,0.000294,2]
[391727215,1760754644718,-898.28,0.000294,7]
[391727216,1760754644727,-500.0,0.00029479,30]
[391727217,1760754644736,-254.55,0.00029594,2]
[391727218,1760754644745,-199.91361796,0.00029616,2]
[391727219,1760754644754,-500.0,0.00029753,30]
[391727220,1760754644763,-300.0,0.00029899,10]
[391727221,1760754644772,-77541.99807267,0.000299,2]
[391727222,1760754644782,-339.4,0.00029911,2]
[391727223,1760754644792,-180.10172467,0.00029985,4]
[391727224,1760754644802,-15329.66382141,0.0003,3]
[391727225,1760754644815,-170.61204867,0.0003,30]
[391727226,1760754644824,-158.69090589,0.0003,30]
[391727227,1760754644833,-2731.94906723,0.0003,120]
[391727228,1760754644843,-500.0,0.00030027,30]
[391727229,1760754644852,-668.54324143,0.0003013,120]
[391727230,1760754644861,-500.0,0.00030301,30]
[391727231,1760754644870,-169.69,0.0003046,2]
[391727232,1760754644880,-630.18,0.000305,2]
[391727233,1760754644890,-306.3819957,0.00030619,10]
[391727234,1760754644899,-19677.02,0.0003062,2]
[391727235,1760754644909,-3755.02,0.0003062,2]
[391727236,1760754644918,-1181.74,0.0003062,2]
[391727237,1760754644927,-150.99,0.0003062,2]
[391727238,1760754644936,-1481.79,0.0003062,2]
[391727239,1760754644946,-17187.68,0.0003062,10]
[391727240,1760754644955,-181.62,0.0003062,2]
[391727241,1760754644964,-299.99,0.0003062,12]
[391727242,1760754644973,-9999.99,0.0003062,2]
[391727243,1760754644983,-1143.81,0.0003062,2]
[391727244,1760754644992,-3372.45,0.0003062,2]
[391727245,1760754645001,-9999.99,0.0003062,2]
[391727246,1760754645011,-298.0,0.00030803,7]
[391727247,1760754645020,-282.93470062,0.00030867,15]
[391727248,1760754645030,-298.0,0.00030883,2]
[391727249,1760754645039,-298.0,0.00030964,2]
[391727250,1760754645048,-151.0,0.00031,120]
[391727251,1760754645058,-153.0,0.00031,120]
[391727252,1760754645067,-4730.41377016,0.00031082,3]
[391727253,1760754645077,-19280.44178001,0.00031091,2]
[391727254,1760754645087,-184.125,0.00031181,2]
[391727255,1760754645097,-150.0,0.0003119,120]
[391727256,1760754645107,-734.38187218,0.000314,30]
[391727257,1760754645116,-614.0,0.000314,7]
[391727258,1760754645126,-306.28347076,0.00031466,2]
[391727259,1760754645136,-898.28,0.000315,30]
[391727260,1760754645145,-298.0,0.00031542,2]
[391727261,1760754645155,-298.0,0.00031666,2]
[391727262,1760754645164,-1000.0,0.00031712,2]
[391727263,1760754645173,-1710.49425483,0.00031753,30]
[391727264,1760754645183,-630.18,0.000318,2]
[391727265,1760754645191,-1710.49425483,0.00031863,30]
[391727266,1760754645200,-298.0,0.0003189,2]
[391727267,1760754645210,-151.0,0.000319,120]
[391727268,1760754645220,-617.0,0.00031955,7]
[391727269,1760754645229,-1502.92204564,0.00032,30]
[391727270,1760754645239,-1710.49425483,0.00032,30]
[391727271,1760754645247,-1684.03598197,0.00032,120]
[391727272,1760754645257,-617.0,0.00032059,2]
[391727273,1760754645266,-14014.6364035,0.00032068,2]
[391727274,1760754645275,-47698.1075282,0.00032068,2]
[391727275,1760754645284,-151.0,0.00032068,30]
[391727276,1760754645293,-151.0,0.00032068,30]
[391727277,1760754645302,-218.679278,0.00032068,30]
[391727278,1760754645312,-218.679278,0.00032068,30]
[391727279,1760754645321,-218.679278,0.00032068,30]
[391727280,1760754645330,-218.679278,0.00032068,30]
[391727281,1760754645339,-151.0,0.00032068,30]
[391727282,1760754645349,-151.0,0.00032068,30]
[391727283,1760754645358,-151.0,0.00032068,30]
[391727284,1760754645368,-151.0,0.00032068,30]
[391727285,1760754645377,-222.79695,0.00032068,30]
[391727286,1760754645387,-151.0,0.00032068,30]
[391727287,1760754645396,-222.79695,0.00032068,30]
[391727288,1760754645405,-222.79695,0.00032068,30]
[391727289,1760754645414,-222.79695,0.00032068,30]
[391727290,1760754645423,-151.0,0.00032068,30]
[391727291,1760754645432,-151.0,0.00032068,30]
[391727292,1760754645441,-345.287805,0.00032068,30]
[391727293,1760754645452,-345.287805,0.00032068,30]
[391727294,1760754645461,-151.0,0.00032068,30]
[391727295,1760754645471,-345.287805,0.00032068,30]